bitfinex/quotes_BTCUSD_20241119
["timestamp","ask_amount","ask_price","bid_price","bid_amount"]
[1732042898335,0.106948,93503.0,93498.0,0.010695]
[1732042898565,0.213901,93501.0,93490.0,0.010696]
[1732042898766,0.106953,93499.0,93494.0,0.010695]
[1732042898977,0.023,93497.0,93494.0,0.02139]
[1732042899209,0.023,93495.0,93494.0,0.010695]
[1732042899438,0.13152789,93495.0,93489.0,0.010696]
[1732042899635,0.10906255,93494.0,93493.0,0.010695]
[1732042899905,0.10906255,93494.0,93291.0,0.51137713]
[1732042899906,0.106969,93485.0,93468.0,0.010698]
[1732042900135,0.21397,93471.0,93453.0,0.0107]
[1732042900343,0.21397,93471.0,93443.0,0.0117108]
[1732042900344,0.107002,93456.0,93443.0,0.0017108]
[1732042900556,0.10906255,93470.0,93443.0,0.0017108]
[1732042900775,0.10906255,93470.0,93449.0,0.0107]
[1732042900985,0.10906255,93470.0,93451.0,0.0111]
[1732042901198,0.351757,93482.0,93451.0,0.0004]
[1732042901403,0.023,93480.0,93477.0,0.010697]
[1732042901603,0.023,93478.0,93477.0,0.010697]
[1732042901819,0.13206255,93478.0,93477.0,0.010697]
[1732042902455,0.351757,93489.0,93488.0,0.010696]
[1732042902685,0.48381955,93489.0,93488.0,0.010696]
[1732042903123,0.351757,93507.0,93481.0,0.010697]
[1732042903330,0.01,93518.0,93455.0,0.0571]
[1732042903331,0.46081955,93506.0,93470.0,0.076]
[1732042903535,0.51616618,93506.0,93470.0,0.076]
[1732042903945,0.46081955,93506.0,93495.0,0.010695]
[1732042904261,0.46081955,93506.0,93470.0,0.076]
[1732042904262,0.106957,93496.0,93486.0,0.053483]
[1732042904590,0.002,93502.0,93457.0,0.0535]
[1732042904591,0.023,93493.0,93473.0,0.053491]
[1732042904798,0.023,93491.0,93473.0,0.053491]
[1732042905013,0.023,93489.0,93482.0,0.053485]
[1732042905254,0.023,93489.0,93473.0,0.053491]
[1732042905255,0.023,93487.0,93483.0,0.053485]
[1732042905506,0.11785661,93485.0,93477.0,0.053489]
[1732042905726,0.023,93483.0,93477.0,0.053488]
[1732042905947,0.023,93481.0,93477.0,0.053488]
[1732042906156,0.023,93479.0,93478.0,0.053488]
[1732042906364,0.023,93479.0,93436.0,0.05309725]
[1732042906365,0.13206255,93479.0,93473.0,0.053491]
[1732042906554,0.023,93477.0,93441.0,0.0822]
[1732042906795,0.565693,93486.0,93441.0,0.0822]
[1732042906796,0.023,93475.0,93473.0,0.053491]
[1732042907022,0.023,93475.0,93474.0,0.05349]
[1732042907237,0.023,93473.0,93472.0,0.053491]
[1732042907577,0.023,93474.0,93472.0,0.053491]
[1732042907785,0.023,93474.0,93471.0,0.053492]
[1732042907993,0.023,93472.0,93471.0,0.053492]
[1732042908198,0.13206255,93472.0,93471.0,0.043492]
[1732042908693,0.13206255,93472.0,93471.0,0.053492]
[1732042908893,0.17580567,93472.0,93471.0,0.053492]
[1732042909122,0.17580567,93472.0,93460.0,0.053498]
[1732042909371,0.023,93469.0,93454.0,0.053501]
[1732042909526,0.023,93467.0,93455.0,0.053501]
[1732042909732,0.65736255,93468.0,93455.0,0.053501]
[1732042909733,0.023,93465.0,93455.0,0.053501]
[1732042909928,0.023,93463.0,93442.0,0.1]
[1732042910278,0.023,93461.0,93458.0,0.053499]
[1732042910508,0.023,93459.0,93458.0,0.053499]
[1732042910713,0.023,93459.0,93452.0,0.053503]
[1732042910714,0.13206255,93459.0,93452.0,0.053503]
[1732042910926,0.023,93457.0,93452.0,0.053503]
[1732042911126,0.023,93455.0,93451.0,0.053903]
[1732042911358,0.023,93453.0,93452.0,0.053503]
[1732042911583,0.13206255,93453.0,93451.0,0.0004]
[1732042911813,0.13206255,93452.0,93451.0,0.0004]
[1732042912095,0.13206255,93452.0,93326.0,0.02068847]
[1732042912096,0.01,93360.0,93326.0,0.02068847]
[1732042912337,0.01,93299.0,93252.0,0.053618]
[1732042912581,0.01,93299.0,93271.0,0.053607]
[1732042912582,0.17637602,93279.0,93271.0,0.053607]
[1732042912832,0.86167143,93278.0,93253.0,0.017892]
[1732042913040,0.86167143,93278.0,93232.0,0.0105]
[1732042913041,1.56454284,93277.0,93276.0,0.053604]
[1732042913250,1.56454284,93277.0,93254.0,0.00688094]
[1732042913475,1.56454284,93276.0,93275.0,0.053604]
[1732042913750,0.83867143,93276.0,93275.0,0.053604]
[1732042913991,0.023,93275.0,93274.0,0.053605]
[1732042914232,0.023,93273.0,93237.0,0.0109509]
[1732042914454,0.28299658,93255.0,93254.0,0.075063]
[1732042914694,0.023,93254.0,93213.0,0.075096]
[1732042914931,0.023,93254.0,93253.0,0.075064]
[1732042915146,0.18802771,93258.0,93255.0,0.075062]
[1732042915365,0.2350344,93264.0,93259.0,0.075059]
[1732042915603,0.02534837,93263.0,93234.0,0.075079]
[1732042915809,0.14067316,93270.0,93269.0,0.075051]
[1732042915810,0.01196213,93270.0,93269.0,0.075051]
[1732042916029,0.01386568,93270.0,93269.0,0.075051]
[1732042916240,0.0373097,93270.0,93269.0,0.075051]
[1732042916456,0.03728117,93270.0,93269.0,0.075051]
[1732042916687,0.02534911,93270.0,93269.0,0.075051]
[1732042917967,0.02478092,93270.0,93269.0,0.075051]
[1732042918263,0.02478092,93270.0,93266.0,0.075054]
[1732042918484,0.00660895,93270.0,93269.0,0.28411355]
[1732042918710,0.14067316,93317.0,93269.0,0.28411355]
[1732042918711,0.01190457,93275.0,93274.0,0.075047]
[1732042918936,0.02,93297.0,93273.0,0.1]
[1732042919150,0.01811436,93296.0,93295.0,0.07503]
[1732042919399,0.01811436,93296.0,93295.0,0.04158966]
[1732042919616,0.01811436,93296.0,93295.0,0.07503]
[1732042919850,0.04111436,93296.0,93295.0,0.07503]
[1732042920308,0.01811436,93296.0,93295.0,0.07503]
[1732042920727,0.49841436,93321.0,93320.0,0.07501]
[1732042920935,0.10906255,93321.0,93320.0,0.05999334]
[1732042921183,0.002,93316.0,93254.0,0.01]
[1732042921445,0.10906255,93293.0,93233.0,0.01]
[1732042921656,0.123,93290.0,93228.0,0.01]
[1732042921862,0.01188787,93283.0,93282.0,0.075041]
[1732042922081,0.01186675,93270.0,93269.0,0.075051]
[1732042922310,0.023,93291.0,93290.0,0.075034]
[1732042922527,0.023,93291.0,93288.0,0.075036]
[1732042922737,0.10906255,93290.0,93289.0,0.075035]
[1732042922986,0.10906255,93290.0,93288.0,0.075036]
[1732042923213,0.023,93289.0,93288.0,0.05726]
[1732042923669,0.1,93303.0,93302.0,0.075025]
[1732042923881,0.10906255,93303.0,93302.0,0.075025]
[1732042924113,0.15172085,93303.0,93302.0,0.075025]
[1732042924351,0.0426583,93303.0,93302.0,0.042871]
[1732042924816,0.49841436,93323.0,93322.0,0.042862]
[1732042925030,0.60747691,93323.0,93322.0,0.042862]
[1732042925678,0.49841436,93332.0,93331.0,0.042858]
[1732042925936,0.60747691,93332.0,93331.0,0.042858]
[1732042926146,0.04283,93338.0,93337.0,0.042855]
[1732042926358,0.49841436,93351.0,93338.0,0.042855]
[1732042926581,0.10946255,93339.0,93333.0,0.042857]
[1732042926791,0.10906255,93335.0,93317.0,0.085728]
[1732042927020,0.214286,93333.0,93318.0,0.042864]
[1732042927237,0.10906255,93332.0,93322.0,0.085724]
[1732042927470,0.1,93331.0,93323.0,0.042861]
[1732042927671,0.1,93329.0,93327.0,0.042859]
[1732042927878,0.13206255,93328.0,93325.0,0.04286]
[1732042928086,0.63047691,93328.0,93327.0,0.042859]
[1732042928326,0.002,93315.0,93285.0,0.042879]
[1732042928551,0.73047691,93314.0,93313.0,0.042866]
[1732042928796,0.00668653,93314.0,93313.0,0.042866]
[1732042929034,0.00668653,93314.0,93286.0,0.10906255]
[1732042929035,0.023,93313.0,93267.0,0.01]
[1732042929280,0.25492399,93312.0,93306.0,0.042869]
[1732042929491,0.25492399,93312.0,93082.0,4e-05]
[1732042929492,0.023,93300.0,93249.0,0.01]
[1732042929729,0.10906255,93270.0,93255.0,0.01]
[1732042929933,0.10906255,93270.0,93209.0,0.0771]
[1732042929934,0.023,93269.0,93268.0,0.042887]
[1732042930120,0.01188878,93280.0,93279.0,0.042882]
[1732042930386,0.23875156,93280.0,93279.0,0.042882]
[1732042930845,0.1,93279.0,93246.0,0.042897]
[1732042931064,0.1,93279.0,93277.0,0.042883]
[1732042931065,0.25016647,93278.0,93277.0,0.042883]
[1732042931503,0.01,93253.0,93118.0,0.381795]
[1732042931745,0.02968901,93252.0,93251.0,0.042894]
[1732042931987,0.26016647,93252.0,93251.0,0.042894]
[1732042932201,0.15016647,93252.0,93251.0,0.042894]
[1732042932435,0.01810392,93252.0,93251.0,0.042894]
[1732042933140,0.04110392,93252.0,93251.0,0.042894]
[1732042933661,0.02969035,93252.0,93251.0,0.042894]
[1732042933896,0.023,93270.0,93249.0,0.042895]
[1732042934122,0.023,93270.0,93269.0,0.042886]
[1732042934358,0.0829,93278.0,93272.0,0.032163]
[1732042934593,0.0829,93278.0,93277.0,0.032162]
[1732042934834,0.04365923,93280.0,93278.0,0.032161]
[1732042935285,0.49841436,93289.0,93278.0,0.032161]
[1732042935536,0.263246,93307.0,93278.0,0.032161]
[1732042935537,0.49841436,93302.0,93278.0,0.032161]
[1732042935776,0.41291436,93302.0,93299.0,0.032154]
[1732042936002,0.52197691,93301.0,93255.0,0.032169]
[1732042936243,0.15524399,93301.0,93256.0,0.10906255]
[1732042936480,0.17824399,93301.0,93300.0,0.032154]
[1732042936713,0.10906255,93301.0,93294.0,0.02589863]
[1732042936951,0.10906255,93301.0,93300.0,0.032154]
[1732042937177,0.52197691,93301.0,93271.0,0.032164]
[1732042937457,0.10906255,93301.0,93300.0,0.032154]
[1732042937708,0.28402847,93296.0,93227.0,0.01]
[1732042937947,0.10906255,93282.0,93263.0,0.032166]
[1732042938187,0.107216,93270.0,93219.0,0.01]
[1732042938423,0.1,93265.0,93258.0,0.032168]
[1732042938651,0.123,93265.0,93258.0,0.032168]
[1732042938904,0.123,93265.0,93245.0,0.032173]
[1732042939130,0.123,93265.0,93256.0,0.064338]
[1732042939131,0.023,93262.0,93256.0,0.064338]
[1732042939354,0.023,93262.0,93212.0,0.032184]
[1732042939355,0.01957339,93261.0,93212.0,0.032184]
[1732042939583,0.04257339,93260.0,93218.0,0.1]
[1732042939812,0.04257339,93260.0,93208.0,0.01]
[1732042939813,0.023,93256.0,93250.0,0.032171]
[1732042940061,0.10906255,93255.0,93250.0,0.032171]
[1732042940334,0.123,93254.0,93229.0,0.032178]
[1732042940570,0.023,93242.0,93236.0,0.032176]
[1732042940810,0.023,93242.0,93191.0,0.01]
[1732042940811,0.023,93238.0,93230.0,0.032178]
[1732042941038,0.023,93236.0,93229.0,0.032178]
[1732042941334,0.023,93234.0,93231.0,0.032177]
[1732042941566,0.023,93234.0,93190.0,0.032192]
[1732042941567,0.023,93231.0,93190.0,0.032192]
[1732042941794,0.023,93231.0,93186.0,0.01]
[1732042941795,0.0954821,93233.0,93191.0,0.10906255]
[1732042942039,0.023,93229.0,93228.0,0.032179]
[1732042942256,0.023,93229.0,93191.0,0.10906255]
[1732042942257,0.18823752,93229.0,93193.0,0.032191]
[1732042942468,0.05128415,93229.0,93228.0,0.032179]
[1732042942688,0.01980048,93229.0,93228.0,0.032179]
[1732042942895,0.01980048,93229.0,93226.0,0.032179]
[1732042942896,0.023,93227.0,93226.0,0.032179]
[1732042943132,0.02105398,93229.0,93228.0,0.032179]
[1732042943361,0.03167596,93234.0,93231.0,0.032178]
[1732042943586,0.03167596,93236.0,93235.0,0.032176]
[1732042943861,0.03405138,93241.0,93240.0,0.032175]
[1732042944103,0.10347877,93241.0,93240.0,0.032175]
[1732042944342,0.01,93235.0,93178.0,0.032196]
[1732042944574,0.28402847,93217.0,93179.0,0.10906255]
[1732042944815,0.17848994,93216.0,93184.0,0.032194]
[1732042945034,0.17848994,93216.0,93173.0,0.01]
[1732042945035,0.01168727,93183.0,93182.0,0.032195]
[1732042945316,0.023,93204.0,93183.0,0.00012602]
[1732042945531,0.023,93204.0,93171.0,0.0004]
[1732042945532,0.023,93182.0,93171.0,0.0004]
[1732042945756,0.023,93180.0,93171.0,0.0004]
[1732042945967,0.13206255,93176.0,93174.0,0.032197]
[1732042946181,0.023,93173.0,93171.0,0.0004]
[1732042946390,0.0267275,93164.0,93163.0,0.032201]
[1732042946606,0.0267275,93164.0,93140.0,0.032209]
[1732042946607,0.01771517,93172.0,93171.0,0.032198]
[1732042946823,0.12624857,93172.0,93171.0,0.032198]
[1732042947056,0.12997607,93172.0,93171.0,0.032198]
[1732042947265,0.12997607,93172.0,93091.0,0.1079]
[1732042947266,0.0037275,93169.0,93148.0,0.032206]
[1732042947486,0.11955226,93168.0,93165.0,0.0322]
[1732042947717,0.02091352,93167.0,93165.0,0.0322]
[1732042947938,0.0037275,93165.0,93151.0,0.032205]
[1732042948153,0.0037275,93152.0,93151.0,0.032205]
[1732042948372,0.0037275,93158.0,93156.0,0.032204]
[1732042948607,0.0454,93158.0,93157.0,0.032203]
[1732042948817,0.06269509,93158.0,93157.0,0.032203]
[1732042949578,0.01059768,93158.0,93157.0,0.032203]
[1732042949790,0.01059768,93158.0,93156.0,0.032204]
[1732042949791,0.00669741,93178.0,93177.0,0.032196]
[1732042950021,0.11575996,93182.0,93181.0,0.032195]
[1732042950231,0.11948614,93182.0,93181.0,0.032195]
[1732042950463,0.12629819,93182.0,93181.0,0.032195]
[1732042950678,0.01967103,93199.0,93163.0,0.1]
[1732042950679,0.01161519,93195.0,93188.0,0.032192]
[1732042950903,0.01161519,93202.0,93201.0,0.032188]
[1732042951143,0.01161519,93210.0,93190.0,0.064384]
[1732042951354,0.01161519,93210.0,93183.0,0.0062725]
[1732042951355,0.01161519,93221.0,93217.0,0.032182]
[1732042951587,0.01161519,93224.0,93223.0,0.03218]
[1732042951789,0.0037275,93215.0,93180.0,0.01]
[1732042952050,0.01965893,93224.0,93210.0,0.032185]
[1732042952051,0.0037275,93211.0,93210.0,0.032185]
[1732042952261,0.0037275,93192.0,93191.0,0.032191]
[1732042952721,0.12872148,93192.0,93191.0,0.032191]
[1732042953228,0.12839953,93192.0,93191.0,0.032191]
[1732042953444,0.12839953,93192.0,93187.0,0.032193]
[1732042953445,0.0267275,93188.0,93187.0,0.032193]
[1732042953693,0.0037275,93184.0,93147.0,0.01]
[1732042953909,0.13206255,93188.0,93147.0,0.01]
[1732042953910,0.0037275,93181.0,93180.0,0.032195]
[1732042954130,0.11279005,93181.0,93180.0,0.032195]
[1732042954541,0.13579005,93181.0,93180.0,0.032195]
[1732042954999,0.10906255,93181.0,93180.0,0.032195]
[1732042955218,0.11279005,93181.0,93180.0,0.032195]
[1732042955432,0.0267275,93180.0,93179.0,0.032195]
[1732042955644,0.13579005,93180.0,93179.0,0.032195]
[1732042956084,0.10906255,93180.0,93179.0,0.032195]
[1732042956891,0.03473807,93181.0,93179.0,0.032195]
[1732042956892,0.03473807,93181.0,93180.0,0.032195]
[1732042957236,0.10906255,93181.0,93180.0,0.032195]
[1732042957669,0.0037275,93194.0,93189.0,0.032192]
[1732042957883,0.03399296,93187.0,93145.0,0.023]
[1732042958108,0.01,93210.0,93207.0,0.032186]
[1732042958109,0.10906255,93208.0,93207.0,0.032186]
[1732042958827,0.00669382,93221.0,93213.0,0.032184]
[1732042959038,0.01,93227.0,93220.0,0.032181]
[1732042959296,0.01,93227.0,93226.0,0.032179]
[1732042959492,0.03466844,93228.0,93227.0,0.032179]
[1732042959737,0.041361,93228.0,93227.0,0.032179]
[1732042959974,0.00669256,93228.0,93227.0,0.032179]
[1732042960421,0.00669256,93228.0,93226.0,0.0308945]
[1732042960673,0.58311119,93232.0,93229.0,0.032178]
[1732042960897,0.03481119,93232.0,93231.0,0.032178]
[1732042961118,0.08659177,93232.0,93231.0,0.032178]
[1732042961342,0.06230164,93232.0,93231.0,0.032178]
[1732042963470,0.04508827,93232.0,93231.0,0.032178]
[1732042963696,0.06230554,93232.0,93231.0,0.032178]
[1732042964157,0.07327092,93232.0,93231.0,0.021452]
[1732042964433,0.17136809,93232.0,93231.0,0.021452]
[1732042965111,0.19119637,93232.0,93204.0,0.021458]
[1732042965331,0.01096735,93222.0,93181.0,0.021463]
[1732042965576,0.00515962,93221.0,93218.0,0.021455]
[1732042965811,0.00515962,93221.0,93182.0,0.20906255]
[1732042965812,0.10906255,93231.0,93215.0,0.021455]
[1732042966022,0.10906255,93231.0,93230.0,0.021452]
[1732042966701,0.0348839,93234.0,93233.0,0.021451]
[1732042966920,0.14394645,93234.0,93231.0,0.021452]
[1732042967135,0.01,93210.0,93170.0,0.0813]
[1732042967368,0.01,93210.0,93181.0,0.021463]
[1732042967369,0.02,93204.0,93181.0,0.021463]
[1732042967622,0.01,93199.0,93198.0,0.021459]
[1732042967850,0.11906255,93199.0,93198.0,0.021459]
[1732042968091,0.02146,93199.0,93198.0,0.02109606]
[1732042969517,0.03182366,93204.0,93196.0,0.02146]
[1732042969731,0.58014983,93205.0,93204.0,0.021458]
[1732042969944,0.03184983,93208.0,93207.0,0.021457]
[1732042970570,0.05533129,93215.0,93214.0,0.021456]
[1732042970785,0.05533129,93215.0,93212.0,0.021456]
[1732042971056,0.04533129,93215.0,93214.0,0.021456]
[1732042971264,0.03533129,93215.0,93214.0,0.021456]
[1732042971725,0.0318527,93223.0,93212.0,0.021456]
[1732042971726,0.0318527,93223.0,93222.0,0.021454]
[1732042971944,0.03398123,93226.0,93225.0,0.021453]
[1732042972438,0.03398123,93226.0,93220.0,0.021454]
[1732042972439,0.01101079,93235.0,93228.0,0.021452]
[1732042972657,0.10906255,93238.0,93237.0,0.02145]
[1732042972876,0.0004,93239.0,93238.0,0.02145]
[1732042974425,0.03551104,93257.0,93255.0,0.021446]
[1732042974663,0.03551104,93257.0,93256.0,0.021446]
[1732042974881,0.03551104,93257.0,93238.0,0.02145]
[1732042974882,0.01,93252.0,93178.0,0.0454]
[1732042975119,0.01,93243.0,93240.0,0.021449]
[1732042975337,0.01,93243.0,93242.0,0.021449]
[1732042975547,0.03007411,93243.0,93240.0,0.021449]
[1732042975756,0.09289878,93242.0,93241.0,0.021449]
[1732042975964,0.06109979,93242.0,93241.0,0.021449]
[1732042976445,0.06109979,93242.0,93240.0,0.021449]
[1732042976446,0.01,93230.0,93205.0,0.1]
[1732042976675,0.20197053,93229.0,93192.0,1.25190086]
[1732042976888,0.06109979,93228.0,93178.0,0.1211]
[1732042977121,0.02045152,93230.0,93178.0,0.1211]
[1732042977122,0.0418089,93230.0,93229.0,0.021452]
[1732042977364,0.0258882,93230.0,93229.0,0.021452]
[1732042977621,0.2047608,93230.0,93229.0,0.021452]
[1732042977867,0.22464984,93230.0,93229.0,0.021452]
[1732042978078,0.19004711,93230.0,93229.0,0.021452]
[1732042978294,0.08098456,93230.0,93229.0,0.021452]
[1732042979006,0.06759971,93230.0,93229.0,0.021452]
[1732042980623,0.00903359,93230.0,93229.0,0.021452]
[1732042981946,0.01047097,93254.0,93253.0,0.021447]
[1732042982168,0.01047097,93261.0,93256.0,0.021446]
[1732042982393,0.0474,93262.0,93256.0,0.021446]
[1732042982618,0.01,93201.0,93199.0,0.021459]
[1732042982835,0.0474,93224.0,93177.0,0.021464]
[1732042982836,0.01,93209.0,93208.0,0.021457]
[1732042983047,0.01,93216.0,93163.0,0.0468]
[1732042983269,0.01,93213.0,93164.0,0.021467]
[1732042983508,0.00889042,93212.0,93199.0,0.021459]
[1732042983740,0.01,93213.0,93211.0,0.021456]
[1732042983998,0.00860317,93212.0,93211.0,0.021456]
[1732042984448,0.01,93234.0,93233.0,0.021451]
[1732042984696,0.01046598,93240.0,93234.0,0.021451]
[1732042984938,0.01,93242.0,93234.0,0.021451]
[1732042985172,0.07159744,93235.0,93234.0,0.021451]
[1732042985626,0.06299957,93235.0,93234.0,0.021451]
[1732042986785,0.00843092,93258.0,93257.0,0.021446]
[1732042987007,0.0004,93259.0,93258.0,0.021445]
[1732042988875,0.0004,93259.0,93245.0,0.1]
[1732042988876,0.023,93258.0,93250.0,0.021447]
[1732042989116,0.0083831,93257.0,93255.0,0.021446]
[1732042989344,0.0004,93259.0,93258.0,0.021445]
[1732042991625,0.0004,93259.0,93258.0,0.13050755]
[1732042992077,0.0008564,93286.0,93278.0,0.021441]
[1732042992785,0.0008564,93286.0,93260.0,0.1]
[1732042992786,0.01,93275.0,93267.0,0.021443]
[1732042993041,0.01,93275.0,93273.0,0.021442]
[1732042993042,0.13206255,93274.0,93273.0,0.021442]
[1732042993276,0.13206255,93274.0,93267.0,0.021443]
[1732042993485,0.13206255,93274.0,93270.0,0.021443]
[1732042993712,0.13206255,93274.0,93264.0,0.021444]
[1732042993931,0.13206255,93274.0,93228.0,0.1]
[1732042993932,0.023,93271.0,93267.0,0.021443]
[1732042994162,0.023,93271.0,93270.0,0.021443]
[1732042994392,0.1505,93271.0,93267.0,0.021443]
[1732042994614,0.023,93236.0,93198.0,0.0017188]
[1732042994823,0.033,93233.0,93198.0,0.0017188]
[1732042995115,0.023,93216.0,93215.0,0.021455]
[1732042995316,0.107279,93215.0,93207.0,0.021457]
[1732042995495,0.11906255,93214.0,93207.0,0.021457]
[1732042995739,0.05406255,93214.0,93198.0,0.0231778]
[1732042995952,0.01,93203.0,93198.0,0.0231778]
[1732042996157,0.10906255,93202.0,93198.0,0.0017188]
[1732042996608,0.10906255,93202.0,93199.0,0.0231778]
[1732042996828,0.10906255,93202.0,93201.0,0.021458]
[1732042997688,0.0452039,93204.0,93201.0,0.021458]
[1732042997689,0.0452039,93204.0,93203.0,0.021458]
[1732042997900,0.023177,93205.0,93204.0,0.021458]
[1732042998107,0.5483,93213.0,93212.0,0.021456]
[1732042998655,0.65736255,93213.0,93212.0,0.021456]
[1732042999928,0.5483,93213.0,93212.0,0.021456]
[1732043000900,0.03498809,93216.0,93215.0,0.021455]
[1732043001380,0.13028,93214.0,93203.0,0.021458]
[1732043001612,0.13028,93214.0,93198.0,0.0231778]
[1732043001613,0.023,93212.0,93206.0,0.021457]
[1732043001850,0.41802528,93213.0,93209.0,0.021457]
[1732043001851,0.023,93210.0,93209.0,0.021457]
[1732043002084,0.01,93215.0,93211.0,0.021456]
[1732043002306,0.01,93215.0,93214.0,0.021456]
[1732043002561,0.01835413,93215.0,93214.0,0.021456]
[1732043002764,0.05418393,93215.0,93214.0,0.021456]
[1732043002971,0.023,93214.0,93198.0,0.0017188]
[1732043003212,0.28402847,93198.0,93173.0,0.021465]
[1732043003427,0.023,93193.0,93188.0,0.021461]
[1732043003635,0.10906255,93192.0,93188.0,0.021461]
[1732043003842,0.01,93185.0,93181.0,0.021463]
[1732043004049,0.29402847,93185.0,93184.0,0.021462]
[1732043004695,0.107313,93186.0,93179.0,0.021463]
[1732043004897,0.023,93184.0,93150.0,0.02147]
[1732043005122,0.023,93184.0,93135.0,0.001712]
[1732043005123,0.130318,93181.0,93168.0,0.021466]
[1732043005372,0.214656,93172.0,93135.0,0.001712]
[1732043005590,0.023,93162.0,93156.0,0.021469]
[1732043005810,0.10906255,93161.0,93124.0,0.008824]
[1732043006048,0.001176,93158.0,93125.0,0.10906255]
[1732043006280,0.001176,93154.0,93153.0,0.021469]
[1732043006527,0.024176,93153.0,93152.0,0.02147]
[1732043006751,0.13323855,93153.0,93150.0,0.02147]
[1732043007013,0.023,93151.0,93150.0,0.02147]
[1732043007229,0.13106255,93151.0,93149.0,0.02147]
[1732043007449,0.13106255,93151.0,93143.0,0.021472]
[1732043007450,0.001176,93144.0,93143.0,0.01588044]
[1732043007698,0.001176,93144.0,93114.0,0.0017126]
[1732043007699,0.001176,93142.0,93141.0,0.021472]
[1732043007898,0.11023855,93142.0,93141.0,0.021472]
[1732043008449,0.001176,93145.0,93144.0,0.021472]
[1732043008647,0.022,93151.0,93144.0,0.021472]
[1732043008854,0.022,93151.0,93137.0,0.021473]
[1732043008855,0.00858731,93161.0,93157.0,0.021469]
[1732043009080,0.001176,93167.0,93166.0,0.021467]
[1732043009297,0.11023855,93167.0,93166.0,0.021467]
[1732043009497,0.11023855,93167.0,93162.0,0.021467]
[1732043009752,0.11023855,93166.0,93165.0,0.021467]
[1732043010084,0.10938547,93166.0,93165.0,0.021467]
[1732043010355,0.023,93165.0,93156.0,0.021469]
[1732043010581,0.001176,93149.0,93114.0,0.0017126]
[1732043010829,0.023,93147.0,93114.0,0.0017126]
[1732043011041,0.023,93145.0,93116.0,0.021478]
[1732043011264,0.13206255,93144.0,93143.0,0.021472]
[1732043012029,0.13206255,93144.0,93142.0,0.021472]
[1732043012212,0.13206255,93144.0,93101.0,0.0555]
[1732043012213,0.023,93143.0,93129.0,0.021475]
[1732043012413,0.13206255,93142.0,93141.0,0.021472]
[1732043013252,0.06698452,93147.0,93146.0,0.021471]
[1732043013457,0.17604707,93147.0,93146.0,0.021471]
[1732043014124,0.17604707,93147.0,93144.0,0.021471]
[1732043014329,0.17604707,93147.0,93137.0,0.021473]
[1732043014330,0.13206255,93146.0,93141.0,0.021472]
[1732043014547,0.13206255,93146.0,93144.0,0.021472]
[1732043014762,0.13206255,93146.0,93106.0,0.01]
[1732043014763,0.13206255,93146.0,93145.0,0.021471]
[1732043014953,0.10906255,93146.0,93145.0,0.021471]
[1732043015583,0.15329334,93146.0,93145.0,0.021471]
[1732043016002,0.15329334,93146.0,93137.0,0.021473]
[1732043016233,0.023,93143.0,93141.0,0.021472]
[1732043016447,0.13206255,93142.0,93141.0,0.021472]
[1732043016649,0.023,93141.0,93119.0,0.021477]
[1732043017392,0.107373,93134.0,93117.0,0.0231888]
[1732043017560,0.023,93132.0,93117.0,0.0017108]
[1732043017814,0.023,93132.0,93124.0,0.021476]
[1732043017981,0.130374,93132.0,93122.0,0.021477]
[1732043018162,0.130374,93132.0,93117.0,0.0017108]
[1732043018163,0.107378,93129.0,93117.0,0.0231888]
[1732043018362,0.34514,93127.0,93117.0,0.0017108]
[1732043018567,0.023,93125.0,93117.0,0.0017108]
[1732043018787,0.023,93122.0,93117.0,0.0017108]
[1732043018990,0.023,93122.0,93098.0,0.021482]
[1732043018991,0.023,93117.0,93085.0,0.021485]
[1732043019243,0.023,93102.0,93085.0,0.021485]
[1732043019466,0.023,93099.0,93082.0,0.021486]
[1732043019701,0.023,93097.0,93087.0,0.021485]
[1732043019919,0.023,93095.0,93088.0,0.021484]
[1732043020139,0.10742,93092.0,93062.0,0.0017108]
[1732043020378,0.16069515,93092.0,93062.0,0.0017108]
[1732043020617,0.023,93091.0,93072.0,0.021488]
[1732043020805,0.10906255,93090.0,93062.0,0.0017108]
[1732043021018,0.04946414,93089.0,93088.0,0.021485]
[1732043021221,0.16069515,93089.0,93088.0,0.021485]
[1732043021447,0.19903062,93089.0,93088.0,0.021485]
[1732043021668,0.19903062,93089.0,93086.0,0.021485]
[1732043021910,0.01033106,93093.0,93088.0,0.021485]
[1732043022158,0.5483,93094.0,93086.0,0.021485]
[1732043022159,0.04345049,93097.0,93096.0,0.021483]
[1732043022362,0.04345049,93097.0,93086.0,0.021485]
[1732043022363,0.01033106,93105.0,93104.0,0.021481]
[1732043022577,0.261638,93137.0,93104.0,0.021481]
[1732043022578,0.0134042,93107.0,93106.0,0.02148]
[1732043022800,0.0469,93137.0,93106.0,0.02148]
[1732043022801,0.0134042,93110.0,93108.0,0.02148]
[1732043023019,0.04381203,93137.0,93136.0,0.021473]
[1732043023445,0.83232847,93155.0,93154.0,0.021469]
[1732043023656,0.0779,93161.0,93154.0,0.021469]
[1732043023862,0.28488457,93166.0,93132.0,0.021474]
[1732043023863,0.10906255,93160.0,93159.0,0.021468]
[1732043024070,0.18954799,93160.0,93159.0,0.021468]
[1732043024269,0.1761508,93160.0,93159.0,0.021468]
[1732043024480,0.06708825,93160.0,93159.0,0.021468]
[1732043024953,0.07746722,93160.0,93159.0,0.021468]
[1732043025179,0.06708825,93160.0,93159.0,0.021468]
[1732043025644,0.31836855,93166.0,93159.0,0.021468]
[1732043025851,0.31836855,93166.0,93165.0,0.021467]
[1732043026288,0.023,93165.0,93119.0,0.01]
[1732043026501,0.023,93150.0,93148.0,0.021471]
[1732043026766,0.023,93150.0,93145.0,0.021471]
[1732043026993,0.023,93150.0,93137.0,0.021473]